Cogmind - Beta 15 @@@ ROGUE MODE // 2025.09.25 @ 23:49:11 Player: Dolina Result: Self-destructed Performance ------------- Evolutions (2) 1000 Regions Visited (5) 1000 Robots Destroyed (14) 70 Value Destroyed (370) 370 Prototype IDs (23) 460 Alien Tech Used (0) 0 Bonus (300) 300 TOTAL SCORE: 3200 Bonus ------- Aligned with FarCom 300 Cogmind --------- Core Integrity 252/550 Matter 237/300 Energy 100/100 System Corruption 0% Temperature Cool (0) Movement Core (100) Ox1 Location -8/Materials Parts ------- > --- POWER (2) -------- (None) > --- PROPULSION (2) --- (None) > --- UTILITY (3) ------ Small Storage Unit > --- WEAPON (4) ------- (None) > --- INVENTORY (8) ---- Light Nuclear Core Cloak of Protection Peak State ------------ > --- POWER ------------ Ion Engine Light Ion Engine > --- PROPULSION ------- Aluminum Leg Aluminum Leg > --- UTILITY ---------- Small Storage Unit Small Matter Pod > --- WEAPON ----------- Light Cannon Light Cannon Light Cannon Rocket Launcher > --- INVENTORY -------- Light Nuclear Core Cloak of Protection Small Laser Light Cannon [Rating: 12] Favorites ----------- Power Ion Engine Engine Ion Engine Propulsion Aluminum Leg Leg Aluminum Leg Utility Small Storage Unit Storage Small Storage Unit Weapon Light Cannon Energy Gun Medium Laser Ballistic Gun Assault Rifle Ballistic Cannon Light Cannon Launcher Rocket Launcher Build | -11 -10 -10 -10 -9 -8 ------- Run | Yrd Mat Min Exi Min Mat Slots Evolved 4 | . . . . . 4 Power 1 | . . . . . 1 Propulsion . | . . . . . . Utility 1 | . . . . . 1 Weapon 2 | . . . . . 2 Parts Attached 15 | 6 3 1 . . 5 Power 2 | 1 . . . . 1 Engine 2 | 1 . . . . 1 Core . | . . . . . . Reactor . | . . . . . . Propulsion 3 | 2 . 1 . . . Treads . | . . . . . . Leg 3 | 2 . 1 . . . Wheel . | . . . . . . Hover . | . . . . . . Flight . | . . . . . . Utility 2 | 1 1 . . . . Device . | . . . . . . Storage 2 | 1 1 . . . . Processor . | . . . . . . Hackware . | . . . . . . Protection . | . . . . . . Artifact . | . . . . . . Weapon 8 | 2 2 . . . 4 Energy Gun 2 | 1 . . . . 1 Energy Cannon . | . . . . . . Ballistic Gun 1 | 1 . . . . . Ballistic Cannon 4 | . 2 . . . 2 Launcher 1 | . . . . . 1 Special Weapon . | . . . . . . Impact Weapon . | . . . . . . Slashing Weapon . | . . . . . . Piercing Weapon . | . . . . . . Special Melee Weapon . | . . . . . . Unidentified Prototypes . | . . . . . . Parts Lost 12 | . . 1 . . 11 Power 2 | . . . . . 2 Propulsion 3 | . . 1 . . 2 Utility 1 | . . . . . 1 Weapon 6 | . . . . . 6 Highest Loss Streak 11 | . . 1 . . 11 To Critical Strikes . | . . . . . . Average Backups 5 | 1 4 6 6 7 3 Power 1 | . 1 2 2 2 1 Propulsion . | . . . . . . Utility . | . . . . 1 1 Weapon 3 | . 2 3 4 4 1 Tool/Special . | . . . . . . Unused Backups 2 | . . . . . 2 Power 1 | . . . . . 1 Propulsion . | . . . . . . Utility 1 | . . . . . 1 Weapon . | . . . . . . Tool/Special . | . . . . . . Average Slot Usage (%) 96 | . 96 100 100 100 76 Engine 14 | . 14 14 14 14 14 Leg 26 | . 28 28 28 28 13 Storage 26 | . 25 28 28 28 18 Energy Gun 1 | . 6 . . . 1 Ballistic Cannon 25 | . 14 28 28 28 25 Peak Build Rating 12 | 6 7 8 8 8 12 Average Rating 7 | 4 6 7 7 8 10 On Entrance 6 | . 6 7 7 8 8 Naked Turns . | . . . . . . Heaviest Build 27 | 14 17 17 17 17 27 Greatest Support 20 | 20 20 20 20 20 20 Greatest Overweight (x) 2 | . . . . . 2 Average Overweight (x) . | . . . . . 1 Largest Inventory Capacity 8 | 8 8 8 8 8 8 Average Capacity 7 | 7 8 8 8 8 8 Most Carried 8 | 4 8 7 7 7 6 Average Carried 5 | 1 4 6 6 7 3 Final Capacity 8 | 8 8 8 8 8 8 Final Carried 7 | 2 6 6 7 7 2 Class Distribution -------------------- 91% | Mutant 8% | Skirmisher Dominant Class ---------------- Mutant | -10/Materials Mutant | -10/Mines Mutant | -10/Exiles Mutant | -9/Mines Skirmisher | -8/Materials Resources | -11 -10 -10 -10 -9 -8 ----------- Run | Yrd Mat Min Exi Min Mat Matter Collected 561 | 227 127 30 . . 177 Remotely . | . . . . . . Salvage Created 386 | 63 91 . . . 232 Parts 20 | 1 5 . . . 14 Haulers Intercepted . | . . . . . . Recyclers Shooed . | . . . . . . Parts Field Recycled . | . . . . . . Retrieved Matter . | . . . . . . Parts Self-Destructed . | . . . . . . Prevented . | . . . . . . Kills | -11 -10 -10 -10 -9 -8 ------- Run | Yrd Mat Min Exi Min Mat Combat Hostiles Destroyed 11 | . 2 . . . 9 Guns 3 | . 2 . . . 1 Cannons 3 | . . . . . 3 AOE 5 | . . . . . 5 Classes Destroyed 6 | 1 1 . . . 4 Builder 1 | . . . . . 1 Recycler 2 | 1 . . . . 1 Swarmer 4 | . . . . . 4 Grunt 5 | . 2 . . . 3 Brawler 1 | . . . . . 1 Hunter 1 | . . . . . 1 Best Kill Streak 6 | 1 2 . . . 6 Combat Bots Only 6 | . 2 . . . 6 Max Kills in Single Turn 4 | 1 1 . . . 4 Gunslinging . | . . . . . . Exploded 4 | . . . . . 4 Melee . | . . . . . . Uniques/NPCs Destroyed . | . . . . . . Combat | -11 -10 -10 -10 -9 -8 -------- Run | Yrd Mat Min Exi Min Mat Hostile Shots Fired 115 | . 11 . . . 104 Missed 29 | . 2 . . . 27 Hits 86 | . 9 . . . 77 Melee 1 | . . . . . 1 Projectile 85 | . 9 . . . 76 Critical Strikes 3 | . . . . . 3 Damage Taken 1577 | . 124 300 . . 1153 Core 387 | . 26 63 . . 298 Absorbed by Shields . | . . . . . . Core Remaining (%) 82 | 100 . . . 64 . Volleys Fired 35 | 3 8 . . . 24 Largest 4 | 1 2 . . . 4 Hottest 123 | 50 70 . . . 123 Shots Fired 81 | 3 16 . . 1 61 Gun 25 | 3 16 . . . 6 Cannon 54 | . . . . 1 53 Launcher 2 | . . . . . 2 Special . | . . . . . . Kinetic 62 | . 8 . . 1 53 Thermal 17 | 3 8 . . . 6 Explosive 2 | . . . . . 2 Electromagnetic . | . . . . . . Robot Hit Streak 10 | 3 10 . . . 7 Robot Miss Streak 3 | . 1 . . 1 3 Penetration Max . | . . . . . . Secondary Targets . | . . . . . . Shots Hit Robots 52 | 3 13 . . . 36 Core Hits 25 | 2 5 . . . 18 Critical Kills . | . . . . . . Critical Parts Destroyed . | . . . . . . Critical Strikes 3 | 1 1 . . . 1 Burn 2 | 1 1 . . . . Blast 1 | . . . . . 1 Melee Attacks . | . . . . . . Impact . | . . . . . . Slashing . | . . . . . . Piercing . | . . . . . . Sneak Attacks . | . . . . . . Combat Hostiles . | . . . . . . Follow-up Attacks . | . . . . . . Damage Inflicted 1286 | 38 170 . . . 1078 Guns 262 | 38 158 . . . 66 Cannons 592 | . . . . . 592 Explosions 420 | . . . . . 420 Melee . | . . . . . . Ramming 12 | . 12 . . . . Kinetic 674 | . 82 . . . 592 Thermal 180 | 38 76 . . . 66 Explosive 420 | . . . . . 420 Electromagnetic . | . . . . . . Impact . | . . . . . . Slashing . | . . . . . . Piercing . | . . . . . . Highest Corruption 3 | . . 3 3 3 . Average Corruption 3 | . . 3 3 3 . Corruption Purged . | . . . . . . Corruption Blocked . | . . . . . . Effects 22 | . . 3 18 1 . Message Errors 6 | . . . 6 . . Matter Fused 7 | . . 3 4 . . Heat Flow Errors 1 | . . . 1 . . Energy Discharges 3 | . . . 3 . . Data Loss (minor) 2 | . . . 2 . . Data Loss (major) 1 | . . . 1 . . Misfires 1 | . . . . 1 . Alerts 1 | . . . 1 . . Overload Shots . | . . . . . . Overflow Damage 15 | . . . . . 15 Projectiles . | . . . . . . Explosions 15 | . . . . . 15 Melee . | . . . . . . Knockbacks 3 | . . . . . 3 Impact . | . . . . . . Kinetic 3 | . . . . . 3 Secondary . | . . . . . . Self-Inflicted Damage . | . . . . . . Shots . | . . . . . . Rammed . | . . . . . . Targets Rammed 1 | . 1 . . . . Kicked 1 | . 1 . . . . Crushed . | . . . . . . Highest Temperature 225 | 25 147 . 102 . 225 Average Temperature 98 | 25 81 . 57 . 110 Received Heat Transfer 273 | . 75 . . . 198 Effects 1 | . . . . . 1 Energy Bleed 1 | . . . . . 1 Siege Activations . | . . . . . . Martial Activations . | . . . . . . Shielding Activations . | . . . . . . Robots Disrupted . | . . . . . . Combat Hostiles . | . . . . . . Robots Corrupted . | . . . . . . Combat Hostiles . | . . . . . . Parts Fried . | . . . . . . Impact Corruptions . | . . . . . . Robots Melted . | . . . . . . Combat Hostiles . | . . . . . . Parts Melted 1 | 1 . . . . . Heat Transferred 631 | 185 296 . . . 150 Parts Sabotaged . | . . . . . . Parts Stolen . | . . . . . . Parts Stripped . | . . . . . . Power Chain Reactions . | . . . . . . Alert | -11 -10 -10 -10 -9 -8 ------- Run | Yrd Mat Min Exi Min Mat Maximum Alert Level . | . . . . . . Low Security (%) 100 | 100 100 100 . 100 100 Level 1 . | . . . . . . Level 2 . | . . . . . . Level 3 . | . . . . . . Level 4 . | . . . . . . Level 5 . | . . . . . . High Security . | . . . . . . Max Security . | . . . . . . Peak Influence 170 | 5 50 30 . . 170 Initial . | . . . . . . Average 19 | . 11 5 . . 71 Influence Increases 320 | 5 50 30 . . 235 Destroy 0b10 Robot/C 220 | . 40 . . . 180 Destroy 0b10 Robot/NC 15 | 5 . . . . 10 Destroy Leader 40 | . 10 . . . 30 Destroy Structure 15 | . . . . . 15 Lose Combat Pursuer 30 | . . 30 . . . Influence Decreases 235 | 5 50 20 10 . 150 Entered New Map 10 | . . . 10 . . Time Decay 115 | 5 50 20 . . 40 Lost Part 110 | . . . . . 110 Squads Dispatched 3 | . 2 . . . 1 Investigation . | . . . . . . Extermination . | . . . . . . Reinforcement 3 | . 2 . . . 1 Assault . | . . . . . . Garrison . | . . . . . . Intercept . | . . . . . . Searches Triggered . | . . . . . . Construction Impeded . | . . . . . . Haulers Reinforced . | . . . . . . Active Scanning Responses . | . . . . . . Cargo Convoy Interrupts . | . . . . . . Stealth | -11 -10 -10 -10 -9 -8 --------- Run | Yrd Mat Min Exi Min Mat Distress Signals 3 | . 1 . . . 2 Communications Jammed . | . . . . . . Distress Signals . | . . . . . . Times Spotted 22 | . 2 5 . . 15 Peak Tracking Total 6 | . 2 3 . . 6 Tactical Retreats 1 | . . 1 . . . Traps | -11 -10 -10 -10 -9 -8 ------- Run | Yrd Mat Min Exi Min Mat Traps Triggered . | . . . . . . Indirectly . | . . . . . . Trap Hack Attempts . | . . . . . . Triggered . | . . . . . . Disarmed . | . . . . . . Reprogrammed . | . . . . . . Reused . | . . . . . . Traps Extracted . | . . . . . . Installed . | . . . . . . Triggered . | . . . . . . Machines | -11 -10 -10 -10 -9 -8 ---------- Run | Yrd Mat Min Exi Min Mat Machines Disabled . | . . . . . . Max in Single Turn . | . . . . . . Machines Repaired . | . . . . . . Machines Dismantled . | . . . . . . Machines Sabotaged . | . . . . . . Overloaded Fab Kills . | . . . . . . Hacking | -11 -10 -10 -10 -9 -8 --------- Run | Yrd Mat Min Exi Min Mat Machines Accessed 5 | . 3 . 2 . . Terminals 3 | . 3 . . . . Fabricators . | . . . . . . Repair Stations . | . . . . . . Recycling Units . | . . . . . . Scanalyzers . | . . . . . . Garrison Access . | . . . . . . Total Hacks 13 | . 9 . 4 . . Successful 8 | . 4 . 4 . . Failed 5 | . 5 . . . . Catastrophic . | . . . . . . Database Lockouts . | . . . . . . Manual 3 | . . . 3 . . Terminals 9 | . 9 . . . . Fabricators . | . . . . . . Repair Stations . | . . . . . . Recycling Units . | . . . . . . Scanalyzers . | . . . . . . Garrison Access . | . . . . . . Terminal Hacks 8 | . 4 . 4 . . Record 6 | . 3 . 3 . . Dispatch Records 1 | . 1 . . . . Proto ID Catalog 1 | . . . 1 . . Fabricator Hacks . | . . . . . . Repair Station Hacks . | . . . . . . Recycling Unit Hacks . | . . . . . . Scanalyzer . | . . . . . . Garrison Access Hacks . | . . . . . . Unauthorized Hacks . | . . . . . . Terminals . | . . . . . . Fabricators . | . . . . . . Repair Stations . | . . . . . . Recycling Units . | . . . . . . Scanalyzers . | . . . . . . Garrison Access . | . . . . . . Data Cores Recovered . | . . . . . . Used . | . . . . . . Hacking Detections 1 | . 1 . . . . Full Trace Events . | . . . . . . Feedback Events . | . . . . . . Feedback Blocked . | . . . . . . Robot Schematics Acquired . | . . . . . . Robots Built . | . . . . . . Authchips . | . . . . . . Time . | . . . . . . Total Robot Build Rating . | . . . . . . Part Schematics Acquired . | . . . . . . Parts Built . | . . . . . . Authchips . | . . . . . . Time . | . . . . . . Total Part Build Rating . | . . . . . . Parts Repaired . | . . . . . . Time . | . . . . . . Parts Recycled . | . . . . . . Recycled Matter . | . . . . . . Retrieved Matter . | . . . . . . Retrieved Components . | . . . . . . Parts Scanalyzed . | . . . . . . Part Schematics Acquired . | . . . . . . Parts Damaged . | . . . . . . Bothacking | -11 -10 -10 -10 -9 -8 ------------ Run | Yrd Mat Min Exi Min Mat Used RIF Installer . | . . . . . . Robots Hacked . | . . . . . . Non-combat . | . . . . . . Combat . | . . . . . . Robot Hacks Applied . | . . . . . . Relay Couplers Released . | . . . . . . Fabnet Peak Effective % . | . . . . . . Robots Rewired . | . . . . . . Allies Hacked . | . . . . . . Hacks Repelled . | . . . . . . Allies | -11 -10 -10 -10 -9 -8 -------- Run | Yrd Mat Min Exi Min Mat Total Allies . | . . . . . . Largest Group . | . . . . . . Highest-Rated Group . | . . . . . . Highest-Rated Ally . | . . . . . . Total Orders . | . . . . . . Ally Attacks . | . . . . . . Total Damage . | . . . . . . Kills . | . . . . . . Allies Corrupted . | . . . . . . Allies Melted . | . . . . . . Intel | -11 -10 -10 -10 -9 -8 ------- Run | Yrd Mat Min Exi Min Mat Active Infowar (turns) . | . . . . . . Robot Analysis Total . | . . . . . . Derelict Logs Recovered 1 | . . . . 1 . Drone Launches . | . . . . . . Drone Recoveries . | . . . . . . Exploration | -11 -10 -10 -10 -9 -8 ------------- Run | Yrd Mat Min Exi Min Mat Turns Passed 1632 | 99 234 185 874 82 158 Spaces Moved 1164 | 78 162 92 728 69 35 Core 26 | 20 . . . . 6 Treads . | . . . . . . Legs 1138 | 58 162 92 728 69 29 Wheels . | . . . . . . Hover . | . . . . . . Flight . | . . . . . . Fastest Speed 50 | 50 120 120 120 120 100 Average Speed 120 | 102 120 120 120 120 178 Slowest Speed 260 | 120 120 120 120 120 260 Overloaded Moves . | . . . . . . Propulsion Burnouts . | . . . . . . Robots Hopped . | . . . . . . Potential Cave-ins 1 | . . 1 . . . Cave-ins Triggered 1 | . . 1 . . . Exploration Rate (%) 31 | 4 40 27 93 21 6 Regions Visited 5 Branch Regions 3 Pre-discovered Areas . | . . . . . . Known Exits Taken . | . . . . . . Unknown Exits Taken 5 | 1 1 1 1 1 . Scrap Searched . | . . . . . . Spaces Dug . | . . . . . . Terrain Destroyed 16 | . . . . . 16 Melee . | . . . . . . Projectile . | . . . . . . AOE 16 | . . . . . 16 Terrain Rammed . | . . . . . . Walls Destroyed . | . . . . . . Machines Disabled . | . . . . . . Actions | -11 -10 -10 -10 -9 -8 --------- Run | Yrd Mat Min Exi Min Mat Total 1326 | 94 186 166 728 68 84 Wait 95 | . 4 73 . . 18 Move 1159 | 77 161 91 727 68 35 Hop . | . . . . . . Pick Up 17 | 8 7 1 1 . . Fast Attach . | . . . . . . Attach 16 | 6 3 1 . . 6 Detach 1 | . . . . . 1 Swap . | . . . . . . Drop 2 | . 2 . . . . Fire 35 | 3 8 . . . 24 Melee . | . . . . . . Ram . | . . . . . . Kick 1 | . 1 . . . . Crush . | . . . . . . Escape Stasis . | . . . . . . Rewire . | . . . . . . Trap . | . . . . . . Miscellaneous . | . . . . . . Route ------- -11/Scrapyard -10/Materials (discovered 2 exits: [*Mat] / [*Min]) -10/Mines (discovered 2 exits: [*Mat] / *Exi) -10/Exiles (discovered 2 exits: [*Min x2]) -9/Mines -8/Materials History --------- Turn | Location | Event 5 | -11/Scrapyard | Discovered new exit (range 15) 100 | -11/Scrapyard | Entered Materials 286 | -10/Materials | Discovered new exit (range 16) 294 | -10/Materials | Met 8R-AWN 313 | -10/Materials | Build established: Mutant 327 | -10/Materials | Discovered new exit (range 7) 334 | -10/Materials | Entered Mines 335 | -10/Mines | Followed 8R-AWN into the Mines 355 | -10/Mines | Assembled infested the area 360 | -10/Mines | Assisted by a Guerilla fighting off Assembled 365 | -10/Mines | Discovered new exit (range 6) 373 | -10/Mines | Received a Rocket Launcher from a helpful Derelict 394 | -10/Mines | Crushed by falling debris 514 | -10/Mines | Discovered new exit (range 5) 519 | -10/Mines | Entered Exiles 553 | -10/Exiles | Welcomed by 8R-AWN 572 | -10/Exiles | Met EX-HEX 608 | -10/Exiles | Met EX-BIN 625 | -10/Exiles | Aligned with FarCom system 626 | -10/Exiles | Given EX-Vault access code 750 | -10/Exiles | Met EX-DEC 879 | -10/Exiles | Visited The Gauntlet 1099 | -10/Exiles | Discovered new exit (range 14) 1257 | -10/Exiles | Opened EX-Vault 1266 | -10/Exiles | Found Cloak of Protection 1293 | -10/Exiles | Warned to stay clear of 0b10 Research branches 1350 | -10/Exiles | Learned about 8R-AWN's background 1376 | -10/Exiles | Discovered new exit (range 14) 1393 | -10/Exiles | Left Exiles lab with Cloak of Protection 1393 | -10/Exiles | Entered Mines 1407 | -9/Mines | Discovered new exit (range 13) 1475 | -9/Mines | Entered Materials 1475 | -8/Materials | Evolved 4 slots: Power x1, Utility x1, Weapon x2 1633 | -8/Materials | Core integrity fell below 50% 1633 | -8/Materials | Self-destructed Last Messages --------------- Penetrated by Slug. R-06 Scavenger collects Lgt. Nuclear Core. Slug penetrates Wall. Lgt. Cannon destroyed. Penetrated by Slug. Lgt. Cannon destroyed. H-55 Commando destroyed. K-01 Serf collects debris. Penetrated by Slug. Sml. Laser destroyed. Lgt. Ion Engine destroyed. Penetrated by Slug. K-01 Serf collects debris. Acquired 36 matter. Sml. Matter Pod destroyed. Acquired 76 matter. Critical hit (Burn: +37). K-01 Serf collects debris. Acquired 47 matter. Penetrated by Slug. Map ----- +----------------------------------------------------+ | ?????????????????????????????????????????????????? | | ?????????????????????????????????????????????????? | | ?????????????????????????????????????????????????? | | ?????????????????????????????????????????????????? | | ?????????????????????????????????????????????????? | | ?????????????????????????????????????????????????? | | ?????????????????????????????????????????????????? | | ?????????????????????????????????????????????????? | | ?????????????????????????????????????????????????? | | ?????????????????????????????????????????????????? | | ??????????????????????# ?????????????????????????? | | ????????????????????###t?????????????????????????? | | ????????????????????# ?????????????????????????? | | ????????????????????# ?????????????????????????? | | ????????????????????+ Y ????????????????????????? | | ????????????????????# o ????????????????????????? | | ????????????????????? ????????????????????????? | | ?????????????????????# ????????????????????????? | | ?????????????????????# ????????????????????????? | | ??????????????????? # ????????????????????????? | | ???????????????????? + ????????????????????????? | | ?????????????????????# k######??????????????????? | | ?????????????????????# k # #??????????????????? | | ?????????? ##### # %% %%###############?????? | | ?????????? a %%% % #?????? | | ?????????? % %%@ #?????? | | ?????????? % h %Y% % % #?????? | | ?????????? ###+## # !# #######+######?????? | | ????????????????????# * #?# #??????? | | ????????????????????# #?# #??????? | | ????????????????????# """"""" #?# """ """ #??????? | | ????????????????????# """"""" #?# """ """ #??????? | | ????????????????????# """"""" ### """ """ #??????? | | ????????????????????# """"""" # + #??????? | | ????????????????????#???????" ### #??????? | | ???????????????????????????? #?# #??????? | | ?????????????????????????????##?###########??????? | | ?????????????????????????????????????????????????? | | ?????????????????????????????????????????????????? | | | | | | | | | | | | | | | | | | | | | | | +----------------------------------------------------+ Best States ------------- Heat Dissipation 31 Energy Generation 15 Energy Capacity 275 Matter Stores 350 Matter Capacity 350 Sight Range 16 Terrain Scan Density 10 Evasion (%) 55 Item Schematics ----------------- None Robot Schematics ------------------ None Fabricated ------------ Nothing Repaired ---------- Nothing Alien Tech Used ----------------- None Achievements -------------- Unlikely Earthworm Challenges ------------ None Game ------ Seed MissileBombardmentSuite Manual? 0 Play Time 00:26:45 Cumulative 12.3 hours Start 2025.09.25 @ 23:23:38 End 2025.09.25 @ 23:49:11 Sessions 1 Manual Loads 0 Difficulty Rogue Special Mode None Game No. 20 Rogue 20 Adventurer 0 Explorer 0 Win Type - Total 0 Types 0/0/0/0/0/0/0/0/0/0 Lore% 4 Gallery% 11 Achievement% 10 Wizard Run 0 Options --------- Layout 1 ASCII 0 Keyboard 0 Movement Mouse Keybinds 0 Fullscreen 1 Font 32/SmallcapsGlow Map View 50x40 Zoom Use 0% Tactical HUD 0 Map Filters NONE Filters NONE Steam 1 RUN: 66288187-4b88-49c0-80b6-0c18d61aa682